[Event "6e Open International d'Echecs des Sable"]
[Site "Sables d'Olonne, France"]
[Date "2019.07.15"]
[Round "4.5"]
[White "Eugene, Floryan"]
[Black "Redondo Arguelles, Graciela"]
[Result "1-0"]
[ECO "C10"]
[WhiteElo "2300"]
[BlackElo "2043"]
[Annotator "jeanluc"]
[PlyCount "83"]
[EventDate "2019.??.??"]
[TimeControl "1/40:0"]
[WhiteClock "0:33:41"]
[BlackClock "0:00:57"]

1. e4 {[%emt 0:00:00]} e6 {[%emt 0:00:00]} 2. d4 {[%emt 0:00:00]} d5 {[%emt 0:
00:00]} 3. Nd2 {[%emt 0:00:00]} dxe4 {[%emt 0:00:00]} 4. Nxe4 {[%emt 0:00:00]}
Be7 {[%emt 0:00:00]} 5. Nf3 {[%emt 0:00:00]} Nf6 {[%emt 0:00:00]} 6. Bd3 {
[%emt 0:00:00]} Nbd7 {[%emt 0:00:00]} 7. Nxf6+ {[%emt 0:00:00]} Nxf6 {[%emt 0:
00:00]} 8. Qe2 {[%emt 0:00:00]} c5 {[%emt 0:00:00]} 9. dxc5 {[%emt 0:00:00]}
Qa5+ {[%emt 0:00:00]} 10. Bd2 {[%emt 0:00:00]} Qxc5 {[%emt 0:00:00]} 11. O-O-O
{[%emt 0:00:00]} Bd7 {[%emt 0:00:00]} 12. Ne5 {[%emt 0:00:00]} a6 {[%emt 0:00:
00]} 13. Nxd7 {[%emt 0:00:00]} Nxd7 {[%emt 0:00:00]} 14. Qe4 {[%emt 0:00:00]}
Qe5 {[%emt 0:00:00]} 15. Qxe5 {[%emt 0:00:00]} Nxe5 {[%emt 0:00:00]} 16. Be4 {
[%emt 0:00:00]} O-O-O {[%emt 0:00:00]} 17. Bf4 {[%emt 0:00:00]} Ng6 {[%emt 0:
00:00]} 18. Be3 {[%emt 0:00:00]} Bd6 {[%emt 0:00:00]} 19. g3 {[%emt 0:00:00]}
f5 {[%emt 0:00:00]} 20. Bg2 {[%emt 0:00:00]} e5 {[%emt 0:00:00]} 21. Bh3 {
[%emt 0:00:00]} Rhf8 {[%emt 0:00:00]} 22. Rd3 {[%emt 0:00:00]} Bc7 {[%emt 0:02:
12]} 23. Rc3 {[%emt 0:00:00]} Ne7 {[%emt 0:01:32]} 24. Bc5 {[%emt 0:00:00]} Rf7
{[%emt 0:01:18]} 25. Bxe7 {[%emt 0:00:00]} Rxe7 {[%emt 0:00:13]} 26. Bxf5+ {
[%emt 0:00:00]} Kb8 {[%emt 0:00:23]} 27. Bxh7 {[%emt 0:00:00]} e4 {[%emt 0:10:
11]} 28. Re3 {[%emt 0:00:00]} Rf7 {[%emt 0:01:01]} 29. Bxe4 {[%emt 0:00:00]}
Rxf2 {[%emt 0:00:18]} 30. Rb3 {[%emt 0:00:00]} b6 {[%emt 0:00:53]} 31. Rf3 {
[%emt 0:00:00]} Rdd2 {[%emt 0:01:20]} 32. Rf8+ {[%emt 0:00:00]} Bd8 {[%emt 0:
01:08]} 33. Rg8 {[%emt 0:00:00]} g5 {[%emt 0:00:54]} 34. h4 {[%emt 0:00:00]}
gxh4 {[%emt 0:00:39]} 35. gxh4 {[%emt 0:00:00]} Kc7 {[%emt 0:00:16]} 36. h5 {
[%emt 0:00:00]} Rh2 {[%emt 0:00:59]} 37. Rg7+ {[%emt 0:00:00]} Kd6 {[%emt 0:00:
33]} 38. Rf1 {[%emt 0:00:00]} Rde2 {[%emt 0:00:50]} 39. Rd1+ {[%emt 0:00:00]}
Ke5 {[%emt 0:00:38]} 40. Rxd8 {[%emt 0:00:00]} Kxe4 {[%emt 0:00:45]} 41. Re7+ {
[%emt 0:00:00]} Kf5 {[%emt 0:00:20]} 42. Rxe2 {[%emt 0:00:00]} 1-0

[Event "6e Open International d'Echecs des Sable"]
[Site "Sables d'Olonne, France"]
[Date "2019.07.15"]
[Round "4.6"]
[White "Renault, Jerome"]
[Black "Cotonnec, Melkior"]
[Result "0-1"]
[ECO "D93"]
[WhiteElo "2097"]
[BlackElo "2293"]
[Annotator "jeanluc"]
[PlyCount "132"]
[EventDate "2019.??.??"]
[TimeControl "1/40:0"]
[WhiteClock "0:02:32"]
[BlackClock "0:03:22"]

1. d4 {[%emt 0:00:00]} Nf6 {[%emt 0:00:00]} 2. Nf3 {[%emt 0:00:00]} g6 {
[%emt 0:00:00]} 3. c4 {[%emt 0:00:00]} Bg7 {[%emt 0:00:00]} 4. Nc3 {[%emt 0:00:
00]} d5 {[%emt 0:00:00]} 5. Bf4 {[%emt 0:00:00]} c6 {[%emt 0:00:00]} 6. e3 {
[%emt 0:00:00]} O-O {[%emt 0:00:00]} 7. Qb3 {[%emt 0:00:00]} b6 {[%emt 0:00:00]
} 8. Be2 {[%emt 0:00:00]} Bb7 {[%emt 0:00:00]} 9. Rc1 {[%emt 0:00:00]} e6 {
[%emt 0:00:00]} 10. O-O {[%emt 0:00:00]} Nbd7 {[%emt 0:00:00]} 11. Rfd1 {
[%emt 0:00:00]} Re8 {[%emt 0:00:00]} 12. c5 {[%emt 0:00:00]} Bf8 {[%emt 0:00:
00]} 13. a4 {[%emt 0:00:00]} Nh5 {[%emt 0:00:00]} 14. Bg5 {[%emt 0:00:00]} f6 {
[%emt 0:00:00]} 15. Bh4 {[%emt 0:00:00]} g5 {[%emt 0:00:00]} 16. g4 {[%emt 0:
00:00]} gxh4 {[%emt 0:00:00]} 17. gxh5 {[%emt 0:00:00]} f5 {[%emt 0:00:00]} 18.
Kh1 {[%emt 0:00:00]} Kh8 {[%emt 0:00:00]} 19. Rg1 {[%emt 0:00:00]} Rb8 {
[%emt 0:01:08]} 20. cxb6 {[%emt 0:00:00]} axb6 {[%emt 0:00:20]} 21. Ng5 {
[%emt 0:00:00]} Qf6 {[%emt 0:05:00]} 22. f4 {[%emt 0:00:00]} Be7 {[%emt 0:00:
23]} 23. Nd1 {[%emt 0:00:00]} Rg8 {[%emt 0:03:26]} 24. Nf2 {[%emt 0:00:00]} c5
{[%emt 0:02:23]} 25. Qc3 {[%emt 0:00:02]} h6 {[%emt 0:01:48]} 26. Nf3 {[%emt 0:
00:23]} c4 {[%emt 0:01:01]} 27. Ne5 {[%emt 0:02:45]} Nxe5 {[%emt 0:00:24]} 28.
fxe5 {[%emt 0:00:30]} Qxe5 {[%emt 0:01:03]} 29. Bf3 {[%emt 0:01:54]} Qd6 {
[%emt 0:00:51]} 30. Nh3 {[%emt 0:01:23]} Bg5 {[%emt 0:00:11]} 31. Rg2 {[%emt 0:
01:10]} Rbc8 {[%emt 0:01:13]} 32. Rcg1 {[%emt 0:00:43]} Qe7 {[%emt 0:00:22]}
33. Nf4 {[%emt 0:01:11]} Bxf4 {[%emt 0:00:40]} 34. exf4 {[%emt 0:00:17]} Rxg2 {
[%emt 0:00:23]} 35. Rxg2 {[%emt 0:00:15]} Rg8 {[%emt 0:00:27]} 36. Qe3 {
[%emt 0:01:30]} Qf6 {[%emt 0:01:00]} 37. Rxg8+ {[%emt 0:02:30]} Kxg8 {[%emt 0:
00:12]} 38. Kg2 {[%emt 0:00:55]} Kf7 {[%emt 0:00:48]} 39. Kh3 {[%emt 0:03:10]}
Ke8 {[%emt 0:00:48]} 40. Qg1 {[%emt 0:03:20]} Kf7 {[%emt 0:00:24]} 41. Qe3 {
[%emt 0:01:44]} Bc6 {[%emt 0:00:58]} 42. Bd1 {[%emt 0:01:17]} Ke7 {[%emt 0:01:
58]} 43. Qg1 {[%emt 0:02:52]} Be8 {[%emt 0:00:43]} 44. Qe3 {[%emt 0:00:00]} Kd6
{[%emt 0:00:00]} 45. a5 {[%emt 0:00:00]} Kc7 {[%emt 0:00:00]} 46. axb6+ {
[%emt 0:00:00]} Kxb6 {[%emt 0:00:00]} 47. b3 {[%emt 0:00:00]} Bb5 {[%emt 0:00:
00]} 48. bxc4 {[%emt 0:00:00]} Bxc4 {[%emt 0:00:00]} 49. Qf2 {[%emt 0:00:00]}
Qe7 {[%emt 0:00:00]} 50. Qb2+ {[%emt 0:00:00]} Kc7 {[%emt 0:00:00]} 51. Be2 {
[%emt 0:00:37]} Qd6 {[%emt 0:00:00]} 52. Bxc4 {[%emt 0:01:30]} dxc4 {[%emt 0:
00:00]} 53. Qd2 {[%emt 0:00:39]} Qc6 {[%emt 0:00:23]} 54. Qc3 {[%emt 0:04:30]}
Kd7 {[%emt 0:01:13]} 55. d5 {[%emt 0:00:49]} Qxd5 {[%emt 0:00:39]} 56. Kxh4 {
[%emt 0:00:37]} e5 {[%emt 0:05:04]} 57. fxe5 {[%emt 0:00:36]} Ke6 {[%emt 0:00:
25]} 58. Qc1 {[%emt 0:00:35]} Qd4+ {[%emt 0:01:21]} 59. Kg3 {[%emt 0:00:16]}
Qxe5+ {[%emt 0:00:16]} 60. Kg2 {[%emt 0:00:25]} Qe4+ {[%emt 0:00:28]} 61. Kg1 {
[%emt 0:00:34]} f4 {[%emt 0:00:25]} 62. Qa1 {[%emt 0:00:31]} Kf5 {[%emt 0:00:
58]} 63. Qg7 {[%emt 0:00:54]} Qe1+ {[%emt 0:00:24]} 64. Kg2 {[%emt 0:00:15]}
Qe2+ {[%emt 0:00:15]} 65. Kh3 {[%emt 0:00:33]} Qxh5+ {[%emt 0:00:34]} 66. Kg2 {
[%emt 0:00:16]} Qg5+ {[%emt 0:00:19]} 0-1

[Event "6e Open International d'Echecs des Sable"]
[Site "Sables d'Olonne, France"]
[Date "2019.07.15"]
[Round "4.7"]
[White "Maleki, Nicolas"]
[Black "Besson, Bastien"]
[Result "1-0"]
[ECO "C41"]
[WhiteElo "2088"]
[BlackElo "2204"]
[Annotator "jeanluc"]
[PlyCount "81"]
[EventDate "2019.??.??"]
[TimeControl "1/40:0"]
[WhiteClock "0:29:00"]
[BlackClock "0:01:37"]

1. e4 {[%emt 0:00:00]} d6 {[%emt 0:00:00]} 2. d4 {[%emt 0:00:00]} Nf6 {[%emt 0:
00:00]} 3. Nc3 {[%emt 0:00:00]} e5 {[%emt 0:00:00]} 4. Nf3 {[%emt 0:00:00]}
Nbd7 {[%emt 0:00:00]} 5. Bc4 {[%emt 0:00:00]} Be7 {[%emt 0:00:00]} 6. O-O {
[%emt 0:00:00]} O-O {[%emt 0:00:00]} 7. a4 {[%emt 0:00:00]} c6 {[%emt 0:00:00]}
8. Ba2 {[%emt 0:00:00]} b6 {[%emt 0:00:00]} 9. Re1 {[%emt 0:00:00]} a6 {
[%emt 0:00:00]} 10. h3 {[%emt 0:00:00]} Bb7 {[%emt 0:00:00]} 11. Bg5 {[%emt 0:
00:00]} h6 {[%emt 0:00:00]} 12. Bh4 {[%emt 0:00:00]} Qc7 {[%emt 0:00:00]} 13.
Qe2 {[%emt 0:00:00]} b5 {[%emt 0:00:00]} 14. Rad1 {[%emt 0:00:00]} b4 {[%emt 0:
00:00]} 15. Nb1 {[%emt 0:00:00]} Nb6 {[%emt 0:00:00]} 16. Bb3 {[%emt 0:00:00]}
c5 {[%emt 0:00:00]} 17. dxe5 {[%emt 0:00:00]} dxe5 {[%emt 0:00:00]} 18. Nbd2 {
[%emt 0:00:00]} a5 {[%emt 0:00:00]} 19. Bg3 {[%emt 0:00:00]} Bd6 {[%emt 0:00:
00]} 20. Bh4 {[%emt 0:00:00]} Nh5 {[%emt 0:00:00]} 21. Nc4 {[%emt 0:00:00]}
Nxc4 {[%emt 0:00:00]} 22. Bxc4 {[%emt 0:00:00]} Be7 {[%emt 0:00:00]} 23. Nxe5 {
[%emt 0:00:00]} Nf4 {[%emt 0:00:00]} 24. Qg4 {[%emt 0:00:00]} Qxe5 {[%emt 0:00:
00]} 25. Bxe7 {[%emt 0:00:00]} Bc8 {[%emt 0:00:00]} 26. Qg3 {[%emt 0:03:42]}
Nxh3+ {[%emt 0:00:00]} 27. gxh3 {[%emt 0:00:16]} Qxe7 {[%emt 0:00:00]} 28. Rd6
{[%emt 0:06:14]} Be6 {[%emt 0:08:41]} 29. Bxe6 {[%emt 0:05:44]} fxe6 {[%emt 0:
00:12]} 30. Red1 {[%emt 0:02:30]} Ra7 {[%emt 0:00:22]} 31. Qg4 {[%emt 0:01:06]}
Rf6 {[%emt 0:01:04]} 32. R1d2 {[%emt 0:01:13]} Kh7 {[%emt 0:01:05]} 33. Kf1 {
[%emt 0:00:41]} Rg6 {[%emt 0:01:02]} 34. Qf4 {[%emt 0:00:00]} Qe8 {[%emt 0:03:
09]} 35. Rd8 {[%emt 0:01:16]} Qc6 {[%emt 0:04:09]} 36. Qb8 {[%emt 0:00:35]}
Qa6+ {[%emt 0:00:15]} 37. R2d3 {[%emt 0:00:38]} Rf6 {[%emt 0:00:15]} 38. Rh8+ {
[%emt 0:00:39]} Kg6 {[%emt 0:00:15]} 39. Ke1 {[%emt 0:00:46]} Qb7 {[%emt 0:03:
20]} 40. Rg3+ {[%emt 0:00:30]} Kh5 {[%emt 0:01:14]} 41. Qe5+ {[%emt 0:00:00]}
1-0

[Event "6e Open International d'Echecs des Sable"]
[Site "Sables d'Olonne, France"]
[Date "2019.07.16"]
[Round "5.1"]
[White "Prie, Eric"]
[Black "Colin, Vincent"]
[Result "1/2-1/2"]
[ECO "D00"]
[WhiteElo "2436"]
[BlackElo "2370"]
[Annotator "jeanluc"]
[PlyCount "73"]
[EventDate "2019.??.??"]
[TimeControl "1/40:0"]
[WhiteClock "0:02:52"]
[BlackClock "0:33:13"]

1. d4 {[%emt 0:00:00]} Nf6 {[%emt 0:00:00]} 2. Bf4 {[%emt 0:00:00]} e6 {
[%emt 0:00:00]} 3. e3 {[%emt 0:00:00]} d5 {[%emt 0:00:00]} 4. Nd2 {[%emt 0:00:
00]} Bd6 {[%emt 0:00:00]} 5. Bg3 {[%emt 0:00:00]} O-O {[%emt 0:00:00]} 6. Bd3 {
[%emt 0:00:00]} c5 {[%emt 0:00:00]} 7. c3 {[%emt 0:00:00]} Qc7 {[%emt 0:00:00]}
8. Bxd6 {[%emt 0:00:00]} Qxd6 {[%emt 0:00:00]} 9. f4 {[%emt 0:00:00]} cxd4 {
[%emt 0:00:00]} 10. cxd4 {[%emt 0:00:00]} Qb6 {[%emt 0:00:00]} 11. Qb3 {
[%emt 0:00:00]} Bd7 {[%emt 0:00:00]} 12. Ngf3 {[%emt 0:00:00]} Rc8 {[%emt 0:00:
00]} 13. Qxb6 {[%emt 0:00:00]} axb6 {[%emt 0:00:00]} 14. Ke2 {[%emt 0:00:00]}
Bc6 {[%emt 0:00:00]} 15. Rhc1 {[%emt 0:00:00]} Nbd7 {[%emt 0:00:00]} 16. a4 {
[%emt 0:00:00]} Nf8 {[%emt 0:00:00]} 17. Ne5 {[%emt 0:00:00]} Be8 {[%emt 0:00:
00]} 18. b3 {[%emt 0:00:00]} N6d7 {[%emt 0:00:00]} 19. Nxd7 {[%emt 0:00:00]}
Bxd7 {[%emt 0:00:00]} 20. Nf3 {[%emt 0:00:00]} f6 {[%emt 0:00:00]} 21. Kd2 {
[%emt 0:00:00]} Kf7 {[%emt 0:00:00]} 22. Ng1 {[%emt 0:00:00]} Ke7 {[%emt 0:00:
00]} 23. Ne2 {[%emt 0:00:00]} Be8 {[%emt 0:00:00]} 24. Nc3 {[%emt 0:00:00]} Bg6
{[%emt 0:00:00]} 25. f5 {[%emt 0:00:00]} Bf7 {[%emt 0:00:00]} 26. fxe6 {
[%emt 0:00:00]} Bxe6 {[%emt 0:00:00]} 27. Rc2 {[%emt 0:02:09]} Kd8 {[%emt 0:00:
00]} 28. Rf1 {[%emt 0:01:49]} Rc7 {[%emt 0:00:00]} 29. Bf5 {[%emt 0:01:33]} Bg8
{[%emt 0:00:00]} 30. Rfc1 {[%emt 0:02:20]} Ng6 {[%emt 0:00:00]} 31. Nb5 {
[%emt 0:09:30]} Rxc2+ {[%emt 0:00:00]} 32. Rxc2 {[%emt 0:00:18]} Ne7 {[%emt 0:
00:00]} 33. Bg4 {[%emt 0:00:37]} Nc6 {[%emt 0:00:00]} 34. Nd6 {[%emt 0:01:18]}
Kc7 {[%emt 0:00:00]} 35. Nb5+ {[%emt 0:00:36]} Kd8 {[%emt 0:00:00]} 36. Bf3 {
[%emt 0:00:41]} Kd7 {[%emt 0:00:00]} 37. Bg4+ {[%emt 0:00:57]} 1/2-1/2

[Event "6e Open International d'Echecs des Sable"]
[Site "Sables d'Olonne, France"]
[Date "2019.07.16"]
[Round "5.2"]
[White "Pottier, Simeon"]
[Black "Duboue, Peio"]
[Result "0-1"]
[ECO "D27"]
[WhiteElo "2192"]
[BlackElo "2409"]
[Annotator "jeanluc"]
[PlyCount "41"]
[EventDate "2019.??.??"]
[TimeControl "1/40:0"]
[WhiteClock "0:36:20"]
[BlackClock "1:17:12"]

1. d4 {[%emt 0:00:00]} d5 {[%emt 0:00:00]} 2. c4 {[%emt 0:00:00]} dxc4 {
[%emt 0:00:00]} 3. Nf3 {[%emt 0:00:00]} Nf6 {[%emt 0:00:00]} 4. e3 {[%emt 0:00:
00]} e6 {[%emt 0:00:00]} 5. Bxc4 {[%emt 0:00:00]} a6 {[%emt 0:00:00]} 6. O-O {
[%emt 0:00:00]} c5 {[%emt 0:00:00]} 7. Bb3 {[%emt 0:00:00]} Nc6 {[%emt 0:00:00]
} 8. Qe2 {[%emt 0:00:00]} cxd4 {[%emt 0:00:00]} 9. Rd1 {[%emt 0:00:00]} Be7 {
[%emt 0:00:00]} 10. Nc3 {[%emt 0:00:00]} O-O {[%emt 0:00:00]} 11. exd4 {
[%emt 0:00:00]} Na5 {[%emt 0:00:00]} 12. Bc2 {[%emt 0:00:00]} b5 {[%emt 0:00:
00]} 13. Bf4 {[%emt 0:00:00]} Bb7 {[%emt 0:00:00]} 14. Rac1 {[%emt 0:00:00]}
Nc4 {[%emt 0:00:00]} 15. b3 {[%emt 0:00:00]} Nb6 {[%emt 0:00:00]} 16. Be5 {
[%emt 0:00:00]} Rc8 {[%emt 0:00:00]} 17. Qd3 {[%emt 0:00:00]} g6 {[%emt 0:00:
00]} 18. Nd2 {[%emt 0:00:00]} Ba3 {[%emt 0:00:00]} 19. Rb1 {[%emt 0:00:00]}
Nbd5 {[%emt 0:00:00]} 20. Nde4 {[%emt 0:00:00]} Nxe4 {[%emt 0:00:00]} 21. Nxe4
{[%emt 0:00:00]} 0-1

[Event "6e Open International d'Echecs des Sable"]
[Site "Sables d'Olonne, France"]
[Date "2019.07.16"]
[Round "5.3"]
[White "Bujisho, Benjamin"]
[Black "Maleki, Nicolas"]
[Result "1/2-1/2"]
[ECO "A11"]
[WhiteElo "2326"]
[BlackElo "2088"]
[Annotator "jeanluc"]
[PlyCount "76"]
[EventDate "2019.??.??"]
[TimeControl "1/40:0"]
[WhiteClock "0:05:17"]
[BlackClock "0:00:41"]

1. Nf3 {[%emt 0:00:00]} d5 {[%emt 0:00:00]} 2. g3 {[%emt 0:00:00]} Nf6 {
[%emt 0:00:00]} 3. Bg2 {[%emt 0:00:00]} Bg4 {[%emt 0:00:00]} 4. O-O {[%emt 0:
00:00]} e6 {[%emt 0:00:00]} 5. c4 {[%emt 0:00:00]} c6 {[%emt 0:00:00]} 6. cxd5
{[%emt 0:00:00]} exd5 {[%emt 0:00:00]} 7. d3 {[%emt 0:00:00]} Be7 {[%emt 0:00:
00]} 8. Be3 {[%emt 0:00:00]} Nbd7 {[%emt 0:00:00]} 9. Qb3 {[%emt 0:00:00]} Qc8
{[%emt 0:00:00]} 10. Nc3 {[%emt 0:00:00]} O-O {[%emt 0:00:00]} 11. Rac1 {
[%emt 0:00:00]} Re8 {[%emt 0:00:00]} 12. Rfe1 {[%emt 0:00:00]} Bf8 {[%emt 0:00:
00]} 13. Bd4 {[%emt 0:00:00]} Nc5 {[%emt 0:00:00]} 14. Qd1 {[%emt 0:00:00]} Qd8
{[%emt 0:00:00]} 15. Bxc5 {[%emt 0:00:00]} Bxc5 {[%emt 0:00:00]} 16. d4 {
[%emt 0:00:00]} Bd6 {[%emt 0:00:00]} 17. a3 {[%emt 0:00:00]} Ne4 {[%emt 0:00:
00]} 18. Qb3 {[%emt 0:00:00]} Rb8 {[%emt 0:00:00]} 19. Nxe4 {[%emt 0:00:00]}
dxe4 {[%emt 0:00:00]} 20. Nd2 {[%emt 0:00:00]} Be6 {[%emt 0:00:00]} 21. Qc3 {
[%emt 0:00:00]} Bd5 {[%emt 0:00:00]} 22. e3 {[%emt 0:00:00]} h5 {[%emt 0:00:00]
} 23. Qc2 {[%emt 0:00:00]} Qe7 {[%emt 0:00:00]} 24. Nb1 {[%emt 0:00:00]} h4 {
[%emt 0:00:52]} 25. Nc3 {[%emt 0:00:00]} hxg3 {[%emt 0:01:18]} 26. hxg3 {
[%emt 0:00:00]} g6 {[%emt 0:01:42]} 27. Nxd5 {[%emt 0:00:00]} cxd5 {[%emt 0:00:
13]} 28. Qb3 {[%emt 0:00:00]} Qg5 {[%emt 0:02:06]} 29. Qa4 {[%emt 0:00:00]} a6
{[%emt 0:01:21]} 30. Qa5 {[%emt 0:00:00]} Kg7 {[%emt 0:01:21]} 31. Rc2 {
[%emt 0:00:00]} Re6 {[%emt 0:06:16]} 32. Qd2 {[%emt 0:13:38]} Rh8 {[%emt 0:00:
47]} 33. Rf1 {[%emt 0:05:08]} Rf6 {[%emt 0:02:44]} 34. Qe2 {[%emt 0:00:11]} Qh6
{[%emt 0:00:55]} 35. f4 {[%emt 0:00:11]} exf3 {[%emt 0:01:16]} 36. Rxf3 {
[%emt 0:00:11]} Qh2+ {[%emt 0:02:16]} 37. Kf1 {[%emt 0:00:11]} Qxg3 {[%emt 0:
00:59]} 38. Rxf6 {[%emt 0:00:33]} Kxf6 {[%emt 0:00:33]} 1/2-1/2

[Event "6e Open International d'Echecs des Sable"]
[Site "Sables d'Olonne, France"]
[Date "2019.07.16"]
[Round "5.4"]
[White "Briand, Amaury"]
[Black "Eugene, Floryan"]
[Result "0-1"]
[ECO "C54"]
[WhiteElo "1896"]
[BlackElo "2300"]
[Annotator "jeanluc"]
[PlyCount "62"]
[EventDate "2019.??.??"]
[TimeControl "1/40:0"]
[WhiteClock "0:12:17"]
[BlackClock "0:46:44"]

1. e4 {[%emt 0:00:00]} e5 {[%emt 0:00:00]} 2. Nf3 {[%emt 0:00:00]} Nc6 {
[%emt 0:00:00]} 3. Bc4 {[%emt 0:00:00]} Bc5 {[%emt 0:00:00]} 4. c3 {[%emt 0:00:
00]} Nf6 {[%emt 0:00:00]} 5. d4 {[%emt 0:00:00]} exd4 {[%emt 0:00:00]} 6. e5 {
[%emt 0:00:00]} d5 {[%emt 0:00:00]} 7. Bb5 {[%emt 0:00:00]} Ne4 {[%emt 0:00:00]
} 8. cxd4 {[%emt 0:00:00]} Bb6 {[%emt 0:00:00]} 9. Nc3 {[%emt 0:00:00]} O-O {
[%emt 0:00:00]} 10. Be3 {[%emt 0:00:00]} Bg4 {[%emt 0:00:00]} 11. h3 {[%emt 0:
00:00]} Bh5 {[%emt 0:00:00]} 12. Qc2 {[%emt 0:00:00]} Bg6 {[%emt 0:00:00]} 13.
Qb3 {[%emt 0:00:00]} Ne7 {[%emt 0:00:00]} 14. O-O {[%emt 0:00:00]} c6 {[%emt 0:
00:00]} 15. Bd3 {[%emt 0:00:00]} Nd2 {[%emt 0:00:00]} 16. Nxd2 {[%emt 0:00:00]}
Bxd3 {[%emt 0:00:00]} 17. Rfe1 {[%emt 0:00:00]} Bg6 {[%emt 0:00:00]} 18. Na4 {
[%emt 0:00:00]} Ba5 {[%emt 0:00:00]} 19. Qxb7 {[%emt 0:00:00]} Bc2 {[%emt 0:00:
00]} 20. b3 {[%emt 0:00:00]} Nf5 {[%emt 0:00:00]} 21. e6 {[%emt 0:00:00]} Qc8 {
[%emt 0:00:00]} 22. exf7+ {[%emt 0:00:00]} Rxf7 {[%emt 0:00:00]} 23. Qxc8+ {
[%emt 0:00:00]} Rxc8 {[%emt 0:00:00]} 24. g4 {[%emt 0:00:00]} Bxd2 {[%emt 0:00:
00]} 25. Bxd2 {[%emt 0:00:00]} Nxd4 {[%emt 0:00:00]} 26. Kg2 {[%emt 0:00:00]}
Nf3 {[%emt 0:00:00]} 27. Re2 {[%emt 0:00:00]} Be4 {[%emt 0:00:00]} 28. Bc3 {
[%emt 0:00:27]} Ng5+ {[%emt 0:00:00]} 29. Kh2 {[%emt 0:03:01]} Rf3 {[%emt 0:00:
00]} 30. Kg2 {[%emt 0:04:26]} Rxc3+ {[%emt 0:00:00]} 31. Rxe4 {[%emt 0:00:29]}
Nxe4 {[%emt 0:00:00]} 0-1

[Event "6e Open International d'Echecs des Sable"]
[Site "Sables d'Olonne, France"]
[Date "2019.07.16"]
[Round "5.5"]
[White "Cotonnec, Melkior"]
[Black "Angermuende, Dirk"]
[Result "1-0"]
[ECO "A30"]
[WhiteElo "2293"]
[BlackElo "1972"]
[Annotator "jeanluc"]
[PlyCount "67"]
[EventDate "2019.??.??"]
[TimeControl "1/40:0"]
[WhiteClock "0:11:50"]
[BlackClock "0:02:27"]

1. c4 {[%emt 0:00:00]} Nf6 {[%emt 0:00:00]} 2. Nf3 {[%emt 0:00:00]} e6 {
[%emt 0:00:00]} 3. g3 {[%emt 0:00:00]} b6 {[%emt 0:00:00]} 4. Bg2 {[%emt 0:00:
00]} Bb7 {[%emt 0:00:00]} 5. O-O {[%emt 0:00:00]} Be7 {[%emt 0:00:00]} 6. b3 {
[%emt 0:00:00]} O-O {[%emt 0:00:00]} 7. Bb2 {[%emt 0:00:00]} c5 {[%emt 0:00:00]
} 8. Nc3 {[%emt 0:00:00]} Ne4 {[%emt 0:00:00]} 9. Qc2 {[%emt 0:00:00]} Nxc3 {
[%emt 0:00:00]} 10. Bxc3 {[%emt 0:00:00]} Nc6 {[%emt 0:00:00]} 11. Qb2 {
[%emt 0:00:00]} Bf6 {[%emt 0:00:00]} 12. Bxf6 {[%emt 0:00:00]} Qxf6 {[%emt 0:
00:00]} 13. Qxf6 {[%emt 0:00:00]} gxf6 {[%emt 0:00:00]} 14. Rfd1 {[%emt 0:00:
00]} Rfd8 {[%emt 0:00:00]} 15. d4 {[%emt 0:00:00]} d6 {[%emt 0:00:00]} 16. e3 {
[%emt 0:00:00]} Kf8 {[%emt 0:00:00]} 17. Rd2 {[%emt 0:00:00]} Rab8 {[%emt 0:00:
00]} 18. Rad1 {[%emt 0:00:00]} Ke7 {[%emt 0:00:00]} 19. Ne1 {[%emt 0:00:00]}
Na5 {[%emt 0:00:00]} 20. Kf1 {[%emt 0:00:00]} Bxg2+ {[%emt 0:00:00]} 21. Nxg2 {
[%emt 0:00:10]} Nc6 {[%emt 0:00:00]} 22. Nf4 {[%emt 0:00:51]} Rb7 {[%emt 0:01:
22]} 23. g4 {[%emt 0:01:21]} Rbd7 {[%emt 0:02:56]} 24. h3 {[%emt 0:00:50]} Ke8
{[%emt 0:07:37]} 25. d5 {[%emt 0:01:12]} Ne5 {[%emt 0:00:58]} 26. dxe6 {
[%emt 0:00:15]} fxe6 {[%emt 0:00:36]} 27. Nxe6 {[%emt 0:00:17]} Nf3 {[%emt 0:
00:29]} 28. Rd5 {[%emt 0:01:27]} Rc8 {[%emt 0:00:42]} 29. Kg2 {[%emt 0:00:58]}
Nh4+ {[%emt 0:01:28]} 30. Kg3 {[%emt 0:00:40]} Ng6 {[%emt 0:00:17]} 31. f4 {
[%emt 0:00:38]} Ne7 {[%emt 0:00:39]} 32. Rxd6 {[%emt 0:01:17]} Rxd6 {[%emt 0:
00:37]} 33. Rxd6 {[%emt 0:00:14]} h5 {[%emt 0:01:52]} 34. Ng7+ {[%emt 0:00:55]}
1-0

[Event "6e Open International d'Echecs des Sable"]
[Site "Sables d'Olonne, France"]
[Date "2019.07.16"]
[Round "5.6"]
[White "Mariette, Lucas"]
[Black "Troubat, Alexandre"]
[Result "1-0"]
[ECO "B72"]
[WhiteElo "2244"]
[BlackElo "1932"]
[Annotator "jeanluc"]
[PlyCount "67"]
[EventDate "2019.??.??"]
[TimeControl "1/40:0"]
[WhiteClock "0:43:33"]
[BlackClock "0:01:43"]

1. e4 {[%emt 0:00:00]} c5 {[%emt 0:00:00]} 2. Nf3 {[%emt 0:00:00]} d6 {[%emt 0:
00:00]} 3. d4 {[%emt 0:00:00]} cxd4 {[%emt 0:00:00]} 4. Nxd4 {[%emt 0:00:00]}
Nf6 {[%emt 0:00:00]} 5. Nc3 {[%emt 0:00:00]} g6 {[%emt 0:00:00]} 6. Be3 {
[%emt 0:00:00]} Bg7 {[%emt 0:00:00]} 7. h3 {[%emt 0:00:00]} O-O {[%emt 0:00:00]
} 8. Bc4 {[%emt 0:00:00]} Nxe4 {[%emt 0:00:00]} 9. Nxe4 {[%emt 0:00:00]} d5 {
[%emt 0:00:00]} 10. Bd3 {[%emt 0:00:00]} dxe4 {[%emt 0:00:00]} 11. Bxe4 {
[%emt 0:00:00]} e5 {[%emt 0:00:00]} 12. Nb3 {[%emt 0:00:00]} Nc6 {[%emt 0:00:
00]} 13. O-O {[%emt 0:00:00]} Qf6 {[%emt 0:00:00]} 14. Qd2 {[%emt 0:00:00]} Rd8
{[%emt 0:00:00]} 15. Bg5 {[%emt 0:00:00]} Rxd2 {[%emt 0:00:00]} 16. Bxf6 {
[%emt 0:00:00]} Rd6 {[%emt 0:00:00]} 17. Bxg7 {[%emt 0:00:00]} Kxg7 {[%emt 0:
00:00]} 18. Rad1 {[%emt 0:00:00]} Rxd1 {[%emt 0:00:00]} 19. Rxd1 {[%emt 0:00:
00]} Bf5 {[%emt 0:00:00]} 20. Bxc6 {[%emt 0:00:00]} bxc6 {[%emt 0:00:00]} 21.
Rd2 {[%emt 0:00:00]} Rb8 {[%emt 0:00:00]} 22. c4 {[%emt 0:00:00]} Be6 {[%emt 0:
00:00]} 23. Rc2 {[%emt 0:00:00]} Rd8 {[%emt 0:00:00]} 24. f3 {[%emt 0:00:00]}
Kf6 {[%emt 0:00:00]} 25. Kf2 {[%emt 0:00:00]} Bf5 {[%emt 0:00:00]} 26. Rc3 {
[%emt 0:00:00]} Bb1 {[%emt 0:04:23]} 27. Ke3 {[%emt 0:00:00]} Bxa2 {[%emt 0:02:
15]} 28. Nd2 {[%emt 0:00:00]} a6 {[%emt 0:04:08]} 29. Rc2 {[%emt 0:00:00]} Rb8
{[%emt 0:06:48]} 30. b4 {[%emt 0:00:00]} Bb1 {[%emt 0:00:55]} 31. Nxb1 {
[%emt 0:00:00]} Rxb4 {[%emt 0:00:13]} 32. Nc3 {[%emt 0:00:00]} a5 {[%emt 0:00:
44]} 33. Kd3 {[%emt 0:00:00]} a4 {[%emt 0:00:51]} 34. Ra2 {[%emt 0:00:00]} 1-0